fUSD/lending_fUSD_20240428
["ID","MTS","AMOUNT","RATE_DAILY","PERIOD"]
[21299,1714329121975,-500.0,0.00012876,2]
[21301,1714329121993,-4114.94,0.00012876,2]
[21303,1714329122012,-1028.65,0.00012876,2]
[21305,1714329122031,-500.0,0.00012876,2]
[21307,1714329122049,-1490.71,0.00012876,2]
[21309,1714329122068,-3429.26,0.00012876,2]
[21311,1714329122088,-767.86,0.00012876,2]
[21313,1714329122107,-500.0,0.00012876,2]
[21315,1714329122127,-15996.67,0.00012876,2]
[21317,1714329122147,-973.2,0.00012876,2]
[21319,1714329122166,-769.1,0.00012876,2]
[21320,1714329122175,-29286.52,0.00012876,2]
[21321,1714329122184,-789.38,0.00012876,2]
[21322,1714329122193,-500.0,0.00012876,2]
[21323,1714329122203,-2249.55,0.00012876,2]
[21325,1714329122222,-1366.6,0.00012876,2]
[21327,1714329122241,-3202.06,0.00012876,2]
[21328,1714329122251,-3871.91,0.00012876,2]
[21329,1714329122260,-738.19,0.00012876,2]
[21330,1714329122269,-500.0,0.00012876,2]
[21331,1714329122279,-1052.48,0.00012876,2]
[21333,1714329122297,-500.0,0.00012876,2]
[21335,1714329122317,-500.0,0.00012876,2]
[21337,1714329122336,-726.63,0.00012876,2]
[21339,1714329122354,-500.0,0.00012876,2]
[21340,1714329122364,-1638.81,0.00012876,2]
[21341,1714329122373,-1530.5,0.00012876,2]
[21342,1714329122384,-1018.03,0.00012876,2]
[21343,1714329122394,-1297.13,0.00012876,2]
[21344,1714329122403,-1607.959395,0.00012876,2]
[21345,1714329122413,-6205.7,0.00012876,2]
[21347,1714329122432,-500.0,0.00012876,2]
[21349,1714329122451,-10958.77,0.00012876,2]
[21351,1714329122469,-1395.16,0.00012876,2]
[21353,1714329122488,-1585.31,0.00012876,2]
[21354,1714329122497,-633.01,0.00012876,2]
[21355,1714329122506,-500.0,0.00012876,2]
[21356,1714329122515,-42065.6,0.00012876,2]
[21357,1714329122524,-535.01,0.00012876,2]
[21359,1714329122543,-1402.03,0.00012876,2]
[21360,1714329122552,-500.0,0.00012876,2]
[21361,1714329122561,-2602.9,0.00012876,2]
[21362,1714329122571,-500.0,0.00012876,2]
[21363,1714329122580,-769.08,0.00012876,2]
[21364,1714329122589,-1669.71,0.00012876,2]
[21365,1714329122598,-1691.23,0.00012876,2]
[21367,1714329122616,-4569.34,0.00012876,2]
[21369,1714329122636,-500.0,0.00012876,2]
[21371,1714329122656,-978.2,0.00012876,2]
[21373,1714329122675,-23869.88,0.00012876,2]
[21374,1714329122688,-1242.44,0.00012876,2]
[21375,1714329122697,-1489.55,0.00012876,2]
[21376,1714329122706,-1816.26,0.00012876,2]
[21377,1714329122716,-598.29,0.00012876,2]
[21378,1714329122727,-500.0,0.00012876,2]
[21379,1714329122736,-744.76,0.00012876,2]
[21380,1714329122745,-853.69,0.00012876,2]
[21381,1714329122754,-1396.47,0.00012876,2]
[21382,1714329122766,-2315.27,0.00012876,2]
[21383,1714329122775,-500.0,0.00012876,2]
[21385,1714329122794,-1002.92,0.00012876,2]
[21387,1714329122812,-557.45,0.00012876,2]
[21389,1714329122832,-1605.35,0.00012876,2]
[21391,1714329122851,-9867.65,0.00012876,2]
[21393,1714329122869,-946.14,0.00012876,2]
[21395,1714329122888,-2313.26,0.00012876,2]
[21397,1714329122906,-752.06,0.00012876,2]
[21398,1714329122915,-5622.39,0.00012876,2]
[21399,1714329122924,-993.02,0.00012876,2]
[21400,1714329122934,-854.43,0.00012876,2]
[21401,1714329122943,-962.05,0.00012876,2]
[21402,1714329122952,-500.0,0.00012876,2]
[21403,1714329122961,-505.29557456,0.00012876,2]
[21405,1714329122980,-1819.29,0.00012876,2]
[21407,1714329122998,-500.0,0.00012876,2]
[21409,1714329123016,-883.46,0.00012876,2]
[21411,1714329123035,-3134.07,0.00012876,2]
[21413,1714329123055,-500.0,0.00012876,2]
[21415,1714329123076,-500.0,0.00012876,2]
[21417,1714329123096,-500.0,0.00012876,2]
[21419,1714329123116,-457.29121417,0.00012876,2]
[21421,1714329123137,-4596.92,0.00012876,2]
[21423,1714329123158,-633.32,0.00012876,2]
[21425,1714329123179,-900.78,0.00012876,2]
[21427,1714329123199,-1510.06,0.00012876,2]
[21428,1714329123209,-3266.32,0.00012876,2]
[21429,1714329123218,-2166.18,0.00012876,2]
[21431,1714329123237,-1021.32,0.00012876,2]
[21433,1714329123256,-881.51,0.00012876,2]
[21435,1714329123277,-1077.92,0.00012876,2]
[21437,1714329123298,-570.7,0.00012876,2]
[21439,1714329123319,-2248.37,0.00012876,2]
[21441,1714329123337,-554.01,0.00012876,2]
[21443,1714329123356,-500.0,0.00012876,2]
[21445,1714329123374,-500.0,0.00012876,2]
[21447,1714329123393,-2488.18,0.00012876,2]
[21449,1714329123412,-1331.85,0.00012876,2]
[21451,1714329123431,-500.0,0.00012876,2]
[21453,1714329123449,-813.03,0.00012876,2]
[21455,1714329123468,-1112.39,0.00012876,2]
[21457,1714329123487,-2094.6,0.00012876,2]
[21458,1714329123497,-1384.84,0.00012876,2]
[21459,1714329123506,-3255.5,0.00012876,2]
[21461,1714329123525,-601.67,0.00012876,2]
[21463,1714329123544,-1291.27,0.00012876,2]
[21465,1714329123564,-549.5,0.00012876,2]
[21467,1714329123584,-6907.46,0.00012876,2]
[21469,1714329123603,-503.32668939,0.00012876,2]
[21470,1714329123612,-669.27,0.00012876,2]
[21471,1714329123622,-513.94,0.00012876,2]
[21472,1714329123631,-1176.65,0.00012876,2]
[21473,1714329123641,-3651.69,0.00012876,2]
[21475,1714329123661,-6369.57,0.00012876,2]
[21477,1714329123682,-1274.36,0.00012876,2]
[21479,1714329123706,-517.3,0.00012876,2]
[21480,1714329123716,-500.0,0.00012876,2]
[21481,1714329123727,-3099.3,0.00012876,2]
[21483,1714329123745,-500.0,0.00012876,2]
[21485,1714329123765,-2707.94,0.00012876,2]
[21486,1714329123775,-1115.92,0.00012876,2]
[21487,1714329123785,-1460.67,0.00012876,2]
[21488,1714329123794,-2477.27,0.00012876,2]
[21489,1714329123804,-529.06,0.00012876,2]
[21490,1714329123813,-540.62,0.00012876,2]
[21491,1714329123823,-500.0,0.00012876,2]
[21492,1714329123833,-500.0,0.00012876,2]
[21493,1714329123843,-677.53,0.00012876,2]
[21494,1714329123852,-1835.72,0.00012876,2]
[21495,1714329123862,-658.86,0.00012876,2]
[21496,1714329123872,-560.3,0.00012876,2]
[21497,1714329123881,-540.14,0.00012876,2]
[21498,1714329123891,-728.0,0.00012877,2]
[21499,1714329123900,-1131.10532695,0.00012887,2]
[21500,1714329123909,-180.7562889,0.000129,2]
[21501,1714329123918,-300.0,0.000129,4]
[21502,1714329123928,-1748.09424184,0.00013,2]
[21503,1714329123937,-1500.0,0.00013109,2]
[21504,1714329123947,-150.0,0.00013119,2]
[21505,1714329123956,-150.0,0.00013138,2]
[21506,1714329123966,-665.06,0.0001315,2]
[21507,1714329123975,-797.43,0.0001315,2]
[21508,1714329123985,-500.0,0.0001315,2]
[21509,1714329123994,-500.0,0.0001315,2]
[21510,1714329124003,-500.0,0.0001315,2]
[21511,1714329124012,-500.0,0.0001315,2]
[21512,1714329124022,-500.0,0.0001315,2]
[21513,1714329124032,-500.0,0.0001315,2]
[21514,1714329124041,-500.0,0.0001315,2]
[21515,1714329124051,-631.1,0.0001315,2]
[21516,1714329124061,-500.0,0.0001315,2]
[21517,1714329124070,-500.0,0.0001315,2]
[21518,1714329124082,-500.0,0.0001315,2]
[21519,1714329124093,-611.53,0.0001315,2]
[21520,1714329124105,-500.0,0.0001315,2]
[21521,1714329124116,-500.0,0.0001315,2]
[21522,1714329124125,-587.95,0.0001315,2]
[21523,1714329124135,-500.0,0.0001315,2]
[21525,1714329124155,-896.51,0.0001315,2]
[21526,1714329124165,-500.0,0.0001315,2]
[21527,1714329124174,-500.0,0.0001315,2]
[21528,1714329124184,-513.58,0.0001315,2]
[21529,1714329124196,-500.0,0.0001315,2]
[21530,1714329124208,-500.0,0.0001315,2]
[21531,1714329124220,-522.25,0.0001315,2]
[21532,1714329124232,-500.0,0.0001315,2]
[21533,1714329124242,-560.42,0.0001315,2]
[21534,1714329124251,-626.23,0.0001315,2]
[21535,1714329124260,-1310.66,0.0001315,2]
[21536,1714329124269,-500.0,0.0001315,2]
[21537,1714329124279,-500.0,0.0001315,2]
[21538,1714329124287,-1056.37,0.0001315,2]
[21539,1714329124298,-500.0,0.0001315,2]
[21540,1714329124307,-501.7,0.0001315,2]
[21541,1714329124316,-775.76,0.0001315,2]
[21543,1714329124334,-500.0,0.0001315,2]
[21544,1714329124343,-195.62043549,0.0001315,2]
[21545,1714329124352,-500.0,0.0001315,2]
[21546,1714329124361,-540.43,0.0001315,2]
[21547,1714329124370,-551.61,0.0001315,2]
[21548,1714329124380,-500.0,0.0001315,2]
[21549,1714329124389,-500.0,0.0001315,2]
[21550,1714329124400,-500.0,0.0001315,2]
[21551,1714329124410,-500.0,0.0001315,2]
[21553,1714329124431,-500.0,0.0001315,2]
[21554,1714329124440,-549.6,0.0001315,2]
[21555,1714329124450,-500.0,0.0001315,2]
[21556,1714329124460,-527.24,0.0001315,2]
[21557,1714329124469,-500.0,0.0001315,2]
[21558,1714329124478,-500.0,0.0001315,2]
[21559,1714329124488,-500.0,0.0001315,2]
[21560,1714329124498,-461.36921482,0.0001315,2]
[21561,1714329124507,-500.0,0.0001315,2]
[21562,1714329124517,-500.0,0.0001315,2]
[21563,1714329124527,-500.0,0.0001315,2]
[21564,1714329124716,-725.96,0.0001315,2]
[21565,1714329124728,-500.0,0.0001315,2]
[21567,1714329124747,-500.0,0.0001315,2]
[21569,1714329124775,-1019.23,0.0001315,2]
[21571,1714329124794,-628.03,0.0001315,2]
[21572,1714329124804,-500.0,0.0001315,2]
[21573,1714329124814,-500.0,0.0001315,2]
[21574,1714329124823,-720.76,0.0001315,2]
[21575,1714329124832,-1178.77,0.0001315,2]
[21576,1714329124841,-500.0,0.0001315,2]
[21577,1714329124852,-500.0,0.0001315,2]
[21579,1714329124873,-500.0,0.0001315,2]
[21581,1714329124894,-832.16,0.0001315,2]
[21583,1714329124918,-585.93,0.0001315,2]
[21585,1714329124938,-500.0,0.0001315,2]
[21587,1714329124958,-1025.86,0.0001315,2]
[21589,1714329124978,-773.75,0.0001315,2]
[21591,1714329125000,-1055.21,0.0001315,2]
[21593,1714329125018,-500.0,0.0001315,2]
[21595,1714329125037,-500.0,0.0001315,2]
[21597,1714329125057,-532.31,0.0001315,2]
[21599,1714329125075,-500.0,0.0001315,2]
[21601,1714329125095,-500.0,0.0001315,2]
[21603,1714329125113,-500.0,0.0001315,2]
[21605,1714329125132,-1304.76,0.0001315,2]
[21607,1714329125151,-662.77,0.0001315,2]
[21609,1714329125170,-1390.68,0.0001315,2]
[21611,1714329125188,-500.0,0.0001315,2]
[21613,1714329125207,-500.0,0.0001315,2]
[21615,1714329125226,-616.2,0.0001315,2]
[21617,1714329125245,-500.0,0.0001315,2]
[21619,1714329125265,-500.0,0.0001315,2]
[21621,1714329125284,-500.0,0.0001315,2]
[21623,1714329125303,-1180.8,0.0001315,2]
[21625,1714329125322,-500.0,0.0001315,2]
[21627,1714329125342,-652.81,0.0001315,2]
[21629,1714329125361,-1122.8,0.0001315,2]
[21631,1714329125380,-1126.64,0.0001315,2]
[21633,1714329125402,-549.22,0.0001315,2]
[21635,1714329125421,-500.0,0.0001315,2]
[21637,1714329125440,-705.96,0.0001315,2]
[21639,1714329125459,-1788.12,0.0001315,2]
[21641,1714329125479,-755.04,0.0001315,2]
[21643,1714329125498,-1031.54,0.0001315,2]
[21645,1714329125517,-569.87,0.0001315,2]
[21647,1714329125548,-718.07,0.0001315,2]
[21649,1714329125570,-500.0,0.0001315,2]
[21651,1714329125590,-1114.07,0.0001315,2]
[21652,1714329125600,-500.0,0.0001315,2]
[21653,1714329125610,-500.0,0.0001315,2]
[21655,1714329125629,-1722.02,0.0001315,2]
[21656,1714329125640,-500.0,0.0001315,2]
[21657,1714329125650,-500.0,0.0001315,2]
[21659,1714329125670,-645.11,0.0001315,2]
[21660,1714329125681,-500.0,0.0001315,2]
[21661,1714329125693,-768.98,0.0001315,2]
[21663,1714329125713,-648.5,0.0001315,2]
[21665,1714329125734,-673.41,0.0001315,2]
[21667,1714329125754,-518.35,0.0001315,2]
[21669,1714329125776,-1449.07,0.0001315,2]
[21671,1714329125795,-500.0,0.0001315,2]
[21673,1714329125815,-794.96,0.0001315,2]
[21675,1714329125834,-734.98,0.0001315,2]
[21677,1714329125853,-500.0,0.0001315,2]
[21679,1714329125872,-552.84,0.0001315,2]
[21681,1714329125892,-500.0,0.0001315,2]
[21683,1714329125910,-1048.48,0.0001315,2]
[21685,1714329125931,-683.7,0.0001315,2]
[21687,1714329125950,-572.97,0.0001315,2]
[21689,1714329125969,-743.85,0.0001315,2]
[21691,1714329125990,-690.01,0.0001315,2]
[21693,1714329126010,-555.02,0.0001315,2]
[21695,1714329126030,-500.0,0.0001315,2]
[21697,1714329126048,-500.0,0.0001315,2]
[21699,1714329126068,-500.0,0.0001315,2]
[21701,1714329126088,-1037.99,0.0001315,2]
[21703,1714329126107,-500.0,0.0001315,2]
[21705,1714329126126,-500.0,0.0001315,2]
[21707,1714329126146,-818.36,0.0001315,2]
[21709,1714329126165,-500.0,0.0001315,2]
[21711,1714329126184,-860.79,0.0001315,2]
[21713,1714329126202,-1876.31,0.0001315,2]
[21715,1714329126221,-500.0,0.0001315,2]
[21717,1714329126239,-725.3,0.0001315,2]
[21719,1714329126258,-1054.31,0.0001315,2]
[21721,1714329126277,-500.0,0.0001315,2]
[21723,1714329126295,-784.22,0.0001315,2]
[21725,1714329126313,-500.0,0.0001315,2]
[21727,1714329126333,-500.0,0.0001315,2]
[21729,1714329126352,-500.0,0.0001315,2]
[21731,1714329126371,-780.48,0.0001315,2]
[21733,1714329126391,-500.0,0.0001315,2]
[21735,1714329126411,-528.05,0.0001315,2]
[21737,1714329126431,-1205.16,0.0001315,2]
[21739,1714329126451,-704.8,0.0001315,2]
[21740,1714329126461,-658.26,0.0001315,2]
[21741,1714329126471,-500.0,0.0001315,2]
[21743,1714329126490,-1863.44,0.0001315,2]
[21745,1714329126508,-500.0,0.0001315,2]
[21747,1714329126528,-812.83,0.0001315,2]
[21749,1714329126546,-500.0,0.0001315,2]
[21751,1714329126565,-562.73,0.0001315,2]
[21753,1714329126584,-899.04,0.0001315,2]
[21754,1714329126593,-500.0,0.0001315,2]
[21755,1714329126603,-500.0,0.0001315,2]
[21757,1714329126621,-1190.14,0.0001315,2]
[21759,1714329126642,-626.13,0.0001315,2]
[21760,1714329126651,-500.0,0.0001315,2]
[21761,1714329126661,-669.38,0.0001315,2]
[21762,1714329126671,-876.81,0.0001315,2]
[21763,1714329126680,-500.0,0.0001315,2]
[21764,1714329126694,-752.63,0.0001315,2]
[21765,1714329126704,-500.0,0.0001315,2]
[21766,1714329126713,-1089.32,0.0001315,2]
[21767,1714329126723,-765.33,0.0001315,2]
[21769,1714329126741,-867.7,0.0001315,2]
[21771,1714329126761,-500.0,0.0001315,2]
[21772,1714329126771,-500.0,0.0001315,2]
[21773,1714329126781,-500.0,0.0001315,2]
[21774,1714329126790,-508.53,0.0001315,2]
[21775,1714329126800,-1019.77,0.0001315,2]
[21777,1714329126820,-605.8,0.0001315,2]
[21779,1714329126840,-500.0,0.0001315,2]
[21781,1714329126861,-500.0,0.0001315,2]
[21783,1714329126882,-517.79,0.0001315,2]
[21785,1714329126901,-500.0,0.0001315,2]
[21787,1714329126920,-517.51,0.0001315,2]
[21789,1714329126938,-500.0,0.0001315,2]
[21791,1714329126957,-500.0,0.0001315,2]
[21793,1714329126976,-830.99,0.0001315,2]
[21795,1714329126996,-500.0,0.0001315,2]
[21797,1714329127017,-582.79,0.0001315,2]
[21799,1714329127037,-551.5,0.0001315,2]
[21801,1714329127058,-500.0,0.0001315,2]
[21803,1714329127076,-500.0,0.0001315,2]
[21805,1714329127095,-1415.69,0.0001315,2]
[21807,1714329127115,-500.0,0.0001315,2]
[21809,1714329127134,-836.74,0.0001315,2]
[21811,1714329127153,-1120.64,0.0001315,2]
[21813,1714329127173,-500.0,0.0001315,2]
[21815,1714329127191,-500.0,0.0001315,2]
[21817,1714329127210,-500.0,0.0001315,2]
[21818,1714329127219,-500.0,0.0001315,2]
[21819,1714329127228,-1298.79,0.0001315,2]
[21821,1714329127246,-1163.95,0.0001315,2]
[21822,1714329127256,-1171.06,0.0001315,2]
[21823,1714329127265,-500.0,0.0001315,2]
[21824,1714329127276,-500.0,0.0001315,2]
[21825,1714329127285,-690.62,0.0001315,2]
[21826,1714329127295,-782.58,0.0001315,2]
[21827,1714329127305,-681.46,0.0001315,2]
[21828,1714329127314,-500.0,0.0001315,2]
[21829,1714329127324,-500.0,0.0001315,2]
[21830,1714329127333,-741.3,0.0001315,2]
[21831,1714329127346,-500.0,0.0001315,2]
[21832,1714329127355,-1031.54,0.0001315,2]
[21833,1714329127365,-523.34,0.0001315,2]
[21834,1714329127375,-894.51,0.0001315,2]
[21835,1714329127386,-500.0,0.0001315,2]
[21836,1714329127395,-559.63,0.0001315,2]
[21837,1714329127404,-500.0,0.0001315,2]
[21838,1714329127414,-500.0,0.0001315,2]
[21839,1714329127423,-500.0,0.0001315,2]
[21840,1714329127432,-823.69,0.0001315,2]
[21841,1714329127442,-518.83,0.0001315,2]
[21842,1714329127452,-500.0,0.0001315,2]
[21843,1714329127461,-500.0,0.0001315,2]
[21844,1714329127470,-500.0,0.0001315,2]
[21845,1714329127479,-500.0,0.0001315,2]
[21847,1714329127498,-937.48,0.0001315,2]
[21848,1714329127507,-500.0,0.0001315,2]
[21849,1714329127517,-500.0,0.0001315,2]
[21850,1714329127526,-623.62,0.0001315,2]
[21851,1714329127536,-1027.6,0.0001315,2]
[21852,1714329127546,-500.0,0.0001315,2]
[21853,1714329127785,-500.0,0.0001315,2]
[21854,1714329127795,-500.0,0.0001315,2]
[21855,1714329127804,-500.0,0.0001315,2]
[21856,1714329127813,-500.0,0.0001315,2]
[21857,1714329127822,-1205.63,0.0001315,2]
[21858,1714329127831,-238.74782751,0.0001315,2]
[21859,1714329127840,-500.0,0.0001315,2]
[21860,1714329127849,-848.59,0.0001315,2]
[21861,1714329127858,-681.62,0.0001315,2]
[21862,1714329127867,-500.0,0.0001315,2]
[21863,1714329127877,-500.0,0.0001315,2]
[21864,1714329127887,-500.0,0.0001315,2]
[21865,1714329127896,-500.0,0.0001315,2]
[21867,1714329127914,-4457.04,0.0001315,2]
[21869,1714329127933,-576.16,0.0001315,2]
[21870,1714329127942,-500.0,0.0001315,2]
[21871,1714329127951,-1329.23,0.0001315,2]
[21873,1714329127970,-500.0,0.0001315,2]
[21874,1714329127979,-842.42,0.0001315,2]
[21875,1714329127988,-720.89,0.0001315,2]
[21876,1714329127998,-887.92,0.0001315,2]
[21877,1714329128008,-1491.73,0.0001315,2]
[21878,1714329128017,-563.27,0.0001315,2]
[21879,1714329128027,-9567.9,0.0001315,2]
[21881,1714329128047,-1067.66,0.0001315,2]
[21882,1714329128056,-701.3,0.0001315,2]
[21883,1714329128066,-500.0,0.0001315,2]
[21884,1714329128075,-1014.05,0.0001315,2]
[21885,1714329128085,-500.0,0.0001315,2]
[21886,1714329128094,-869.17,0.0001315,2]
[21887,1714329128103,-829.31,0.0001315,2]
[21888,1714329128113,-865.55,0.0001315,2]
[21889,1714329128122,-519.66519647,0.0001315,2]
[21890,1714329128132,-500.0,0.0001315,2]
[21891,1714329128141,-500.0,0.0001315,2]
[21892,1714329128151,-602.41,0.0001315,2]
[21893,1714329128160,-500.0,0.0001315,2]
[21894,1714329128170,-572.67314881,0.0001315,2]
[21895,1714329128179,-558.66,0.0001315,2]
[21896,1714329128189,-2122.56,0.0001315,2]
[21897,1714329128198,-1093.84,0.0001315,2]
[21898,1714329128208,-500.0,0.0001315,2]
[21899,1714329128218,-500.0,0.0001315,2]
[21900,1714329128227,-500.0,0.0001315,2]
[21901,1714329128236,-1059.92,0.0001315,2]
[21902,1714329128246,-500.0,0.0001315,2]
[21903,1714329128257,-566.25212243,0.0001315,2]
[21904,1714329128266,-769.55,0.0001315,2]
[21905,1714329128275,-2548.79,0.0001315,2]
[21906,1714329128285,-500.0,0.0001315,2]
[21907,1714329128294,-328.32650534,0.0001315,2]
[21908,1714329128303,-545.7,0.0001315,2]
[21909,1714329128313,-500.0,0.0001315,2]
[21910,1714329128322,-908.47,0.0001315,2]
[21911,1714329128331,-2129.61,0.0001315,2]
[21912,1714329128341,-1056.93,0.0001315,2]
[21913,1714329128350,-2366.39,0.0001315,2]
[21914,1714329128359,-500.0,0.0001315,2]
[21915,1714329128368,-720.54,0.0001315,2]
[21916,1714329128377,-500.0,0.0001315,2]
[21917,1714329128388,-500.0,0.0001315,2]
[21918,1714329128397,-737.96,0.0001315,2]
[21919,1714329128406,-500.0,0.0001315,2]
[21921,1714329128424,-1191.82,0.0001315,2]
[21923,1714329128443,-613.02,0.0001315,2]
[21924,1714329128452,-500.0,0.0001315,2]
[21925,1714329128461,-472.82205895,0.0001315,2]
[21926,1714329128471,-793.83,0.0001315,2]
[21927,1714329128480,-3214.28,0.0001315,2]
[21929,1714329128500,-533.47,0.0001315,2]
[21931,1714329128519,-804.06,0.0001315,2]
[21933,1714329128538,-500.0,0.0001315,2]
[21935,1714329128556,-676.7,0.0001315,2]
[21937,1714329128575,-500.0,0.0001315,2]
[21939,1714329128594,-500.0,0.0001315,2]
[21941,1714329128613,-559.35,0.0001315,2]
[21943,1714329128632,-952.74,0.0001315,2]
[21945,1714329128651,-1650.98,0.0001315,2]
[21947,1714329128669,-500.0,0.0001315,2]
[21949,1714329128690,-500.0,0.0001315,2]
[21951,1714329128708,-472.1167539,0.0001315,2]
[21953,1714329128727,-690.12,0.0001315,2]
[21955,1714329128745,-932.3,0.0001315,2]
[21957,1714329128767,-1291.62,0.0001315,2]
[21959,1714329128786,-1325.99,0.0001315,2]
[21961,1714329128806,-500.0,0.0001315,2]
[21963,1714329128825,-1165.14,0.0001315,2]
[21965,1714329128845,-500.0,0.0001315,2]
[21967,1714329128864,-526.88,0.0001315,2]
[21969,1714329128885,-1935.97,0.0001315,2]
[21971,1714329128905,-500.0,0.0001315,2]
[21973,1714329128924,-2097.93,0.0001315,2]
[21975,1714329128944,-930.38,0.0001315,2]
[21977,1714329128963,-500.0,0.0001315,2]
[21979,1714329128982,-608.95,0.0001315,2]
[21980,1714329128992,-2955.84,0.0001315,2]
[21981,1714329129002,-500.0,0.0001315,2]
[21982,1714329129011,-14552.13,0.0001315,2]
[21983,1714329129021,-2200.29,0.0001315,2]
[21984,1714329129030,-2791.31,0.0001315,2]
[21985,1714329129040,-1126.74,0.0001315,2]
[21987,1714329129059,-500.0,0.0001315,2]
[21989,1714329129102,-500.0,0.0001315,2]
[21991,1714329129147,-500.0,0.0001315,2]
[21993,1714329129185,-886.26,0.0001315,2]
[21995,1714329129220,-318.32129,0.0001315,2]
[21997,1714329129262,-1557.43,0.0001315,2]
[21999,1714329129298,-954.97,0.0001315,2]
[22001,1714329129331,-732.8,0.0001315,2]
[22003,1714329129382,-536.39,0.0001315,2]
[22005,1714329129430,-1625.98,0.0001315,2]
[22007,1714329129469,-500.0,0.0001315,2]
[22009,1714329129506,-1696.02,0.0001315,2]
[22011,1714329129543,-8634.93,0.0001315,2]
[22013,1714329129577,-905.2,0.0001315,2]
[22015,1714329129611,-500.0,0.0001315,2]
[22017,1714329129649,-951.17,0.0001315,2]
[22019,1714329129686,-1720.48,0.0001315,2]
[22021,1714329129720,-500.0,0.0001315,2]
[22023,1714329129753,-1333.24,0.0001315,2]
[22025,1714329129786,-3161.91,0.0001315,2]
[22027,1714329129820,-500.0,0.0001315,2]
[22029,1714329129852,-1495.49,0.0001315,2]
[22031,1714329129884,-19514.18,0.0001315,2]
[22033,1714329129916,-29286.52,0.0001315,2]
[22035,1714329129947,-500.0,0.0001315,2]
[22037,1714329129978,-1682.07,0.0001315,2]
[22039,1714329130009,-1270.09,0.0001315,2]
[22041,1714329130041,-3871.91,0.0001315,2]
[22043,1714329130074,-500.0,0.0001315,2]
[22045,1714329130106,-859.1,0.0001315,2]